fUSD/lending_fUSD_20250521
["ID","MTS","AMOUNT","RATE_DAILY","PERIOD"]
[361877589,1747861857318,-420.0,0.00038356,30]
[361877590,1747861857328,-420.0,0.00038356,30]
[361877591,1747861857340,-888.57,0.00038356,30]
[361877592,1747861857351,-420.0,0.00038356,30]
[361877593,1747861857361,-420.0,0.00038356,30]
[361877594,1747861857371,-1499.54,0.00038356,30]
[361877595,1747861857381,-473.88,0.00038356,30]
[361877596,1747861857391,-527.16,0.00038356,30]
[361877597,1747861857401,-420.0,0.00038356,30]
[361877598,1747861857411,-420.0,0.00038356,30]
[361877599,1747861857420,-673.62,0.00038356,30]
[361877600,1747861857430,-707.46,0.00038356,30]
[361877601,1747861857440,-1206.67,0.00038356,30]
[361877602,1747861857450,-420.0,0.00038356,30]
[361877603,1747861857460,-566.67,0.00038356,30]
[361877604,1747861857470,-512.57059795,0.00038356,30]
[361877605,1747861857480,-1500.39,0.00038356,30]
[361877606,1747861857489,-420.0,0.00038356,30]
[361877607,1747861857498,-400.0,0.00038356,30]
[361877608,1747861857507,-420.0,0.00038356,30]
[361877609,1747861857517,-420.0,0.00038356,30]
[361877610,1747861857526,-1244.32,0.00038356,30]
[361877611,1747861857535,-420.0,0.00038356,30]
[361877612,1747861857544,-1205.64,0.00038356,30]
[361877613,1747861857554,-420.0,0.00038356,30]
[361877614,1747861857563,-508.45,0.00038356,30]
[361877615,1747861857572,-420.0,0.00038356,30]
[361877616,1747861857582,-420.0,0.00038356,30]
[361877617,1747861857592,-356.87809396,0.00038356,30]
[361877618,1747861857601,-420.0,0.00038356,30]
[361877619,1747861857611,-609.3,0.00038356,30]
[361877620,1747861857620,-420.0,0.00038356,30]
[361877621,1747861857629,-1891.07,0.00038356,30]
[361877622,1747861857639,-1617.22,0.00038356,30]
[361877623,1747861857648,-1514.8,0.00038356,30]
[361877624,1747861857657,-483.72,0.00038356,30]
[361877625,1747861857666,-1039.07,0.00038356,30]
[361877626,1747861857675,-719.73,0.00038356,30]
[361877627,1747861857684,-420.0,0.00038356,30]
[361877628,1747861857694,-420.0,0.00038356,30]
[361877629,1747861857703,-420.0,0.00038356,2]
[361877630,1747861857713,-420.0,0.00038356,30]
[361877631,1747861857722,-420.0,0.00038356,30]
[361877632,1747861857731,-798.13,0.00038356,30]
[361877633,1747861857741,-420.0,0.00038356,30]
[361877634,1747861857751,-534.13,0.00038356,30]
[361877635,1747861857761,-1212.47,0.00038356,30]
[361877636,1747861857771,-2670.67,0.00038356,30]
[361877637,1747861857780,-474.68,0.00038356,30]
[361877638,1747861857790,-1120.91,0.00038356,30]
[361877639,1747861857799,-1449.63,0.00038356,30]
[361877640,1747861857809,-1045.53,0.00038356,30]
[361877641,1747861857819,-525.72,0.00038356,30]
[361877642,1747861857829,-420.0,0.00038356,30]
[361877643,1747861857839,-511.24927954,0.00038356,30]
[361877644,1747861857848,-583.38,0.00038356,30]
[361877645,1747861857859,-593.84,0.00038356,30]
[361877646,1747861857871,-584.94,0.00038356,30]
[361877647,1747861857881,-552.94,0.00038356,30]
[361877648,1747861857890,-420.0,0.00038356,30]
[361877649,1747861857899,-151.0,0.00038356,7]
[361877650,1747861857910,-420.0,0.00038356,30]
[361877651,1747861857922,-420.0,0.00038356,30]
[361877652,1747861857931,-1768.64,0.00038356,30]
[361877653,1747861857941,-420.0,0.00038356,30]
[361877654,1747861857951,-420.0,0.00038356,30]
[361877655,1747861857960,-420.0,0.00038356,30]
[361877656,1747861857970,-728.86,0.00038356,30]
[361877657,1747861857980,-420.0,0.00038356,30]
[361877658,1747861857989,-420.0,0.00038356,30]
[361877659,1747861857999,-420.0,0.00038356,30]
[361877660,1747861858008,-1472.58,0.00038356,30]
[361877661,1747861858017,-478.45,0.00038356,30]
[361877662,1747861858027,-1314.92,0.00038356,30]
[361877663,1747861858036,-420.0,0.00038356,30]
[361877664,1747861858046,-420.0,0.00038356,30]
[361877665,1747861858055,-151.0,0.00038356,7]
[361877666,1747861858064,-451.84,0.00038356,30]
[361877667,1747861858074,-856.46,0.00038356,30]
[361877668,1747861858084,-1582.56,0.00038356,30]
[361877669,1747861858094,-420.0,0.00038356,30]
[361877670,1747861858104,-420.0,0.00038356,30]
[361877671,1747861858113,-420.0,0.00038356,30]
[361877672,1747861858123,-420.0,0.00038356,30]
[361877673,1747861858132,-420.0,0.00038356,30]
[361877674,1747861858142,-870.67,0.00038356,30]
[361877675,1747861858152,-1242.78,0.00038356,30]
[361877676,1747861858162,-420.0,0.00038356,30]
[361877677,1747861858171,-420.0,0.00038356,30]
[361877678,1747861858181,-420.0,0.00038356,30]
[361877679,1747861858191,-3105.52,0.00038356,30]
[361877680,1747861858200,-653.16,0.00038356,30]
[361877681,1747861858210,-420.0,0.00038356,30]
[361877682,1747861858219,-420.0,0.00038356,30]
[361877683,1747861858229,-420.0,0.00038356,30]
[361877684,1747861858239,-1267.25,0.00038356,30]
[361877685,1747861858248,-949.98,0.00038356,30]
[361877686,1747861858257,-830.33,0.00038356,30]
[361877687,1747861858267,-420.0,0.00038356,30]
[361877688,1747861858279,-718.49,0.00038356,30]
[361877689,1747861858288,-420.0,0.00038356,30]
[361877690,1747861858298,-1538.1,0.00038356,30]
[361877691,1747861858307,-420.0,0.00038356,30]
[361877692,1747861858317,-510.54,0.00038356,30]
[361877693,1747861858327,-414.82597448,0.00038356,30]
[361877694,1747861858336,-834.46,0.00038356,30]
[361877695,1747861858348,-425.26,0.00038356,30]
[361877696,1747861858357,-783.09,0.00038356,30]
[361877697,1747861858366,-613.35,0.00038356,30]
[361877698,1747861858376,-420.0,0.00038356,30]
[361877699,1747861858385,-474.38,0.00038356,30]
[361877700,1747861858397,-860.11,0.00038356,30]
[361877701,1747861858407,-420.0,0.00038356,30]
[361877702,1747861858416,-2236.85,0.00038356,30]
[361877703,1747861858425,-420.0,0.00038356,30]
[361877704,1747861858435,-863.88,0.00038356,30]
[361877705,1747861858444,-420.0,0.00038356,30]
[361877706,1747861858454,-420.0,0.00038356,30]
[361877707,1747861858463,-1588.48,0.00038356,30]
[361877708,1747861858473,-420.0,0.00038356,30]
[361877709,1747861858482,-420.0,0.00038356,30]
[361877710,1747861858491,-487.03,0.00038356,30]
[361877711,1747861858500,-1019.8,0.00038356,30]
[361877712,1747861858509,-420.0,0.00038356,30]
[361877713,1747861858519,-921.43,0.00038356,30]
[361877714,1747861858528,-151.0,0.00038356,7]
[361877715,1747861858537,-151.0,0.00038356,7]
[361877716,1747861858547,-421.35,0.00038356,30]
[361877717,1747861858556,-2009.89,0.00038356,30]
[361877718,1747861858566,-420.0,0.00038356,30]
[361877719,1747861858576,-420.0,0.00038356,30]
[361877720,1747861858586,-420.0,0.00038356,30]
[361877721,1747861858595,-600.01,0.00038356,30]
[361877722,1747861858605,-1225.94,0.00038356,30]
[361877723,1747861858614,-1433.39,0.00038356,30]
[361877724,1747861858623,-420.0,0.00038356,30]
[361877725,1747861858633,-681.14,0.00038356,30]
[361877726,1747861858642,-907.09,0.00038356,30]
[361877727,1747861858666,-420.0,0.00038356,30]
[361877728,1747861858675,-1099.56,0.00038356,30]
[361877729,1747861858685,-420.0,0.00038356,30]
[361877730,1747861858695,-1854.81,0.00038356,30]
[361877731,1747861858705,-513.67,0.00038356,30]
[361877732,1747861858715,-420.0,0.00038356,30]
[361877733,1747861858726,-460.05,0.00038356,30]
[361877734,1747861858736,-494.225928,0.00038356,7]
[361877735,1747861858746,-236.3302927,0.00038356,30]
[361877736,1747861858756,-494.225928,0.00038356,7]
[361877737,1747861858767,-563.11,0.00038356,30]
[361877738,1747861858777,-420.0,0.00038356,30]
[361877739,1747861858787,-771.1,0.00038356,30]
[361877740,1747861858797,-974.75,0.00038356,30]
[361877741,1747861858807,-420.0,0.00038356,30]
[361877742,1747861858817,-621.53,0.00038356,30]
[361877743,1747861858828,-420.0,0.00038356,30]
[361877744,1747861858838,-494.225928,0.00038356,7]
[361877745,1747861858848,-494.225928,0.00038356,7]
[361877746,1747861858858,-1260.05,0.00038356,30]
[361877747,1747861858869,-1101.46,0.00038356,30]
[361877748,1747861858879,-420.0,0.00038356,30]
[361877749,1747861858888,-420.0,0.00038356,30]
[361877750,1747861858898,-420.0,0.00038356,30]
[361877751,1747861858908,-420.0,0.00038356,30]
[361877752,1747861858920,-420.0,0.00038356,30]
[361877753,1747861858930,-1336.49,0.00038356,30]
[361877754,1747861858940,-420.0,0.00038356,30]
[361877755,1747861858951,-420.0,0.00038356,30]
[361877756,1747861858965,-1482.03,0.00038356,30]
[361877757,1747861858975,-151.0,0.00038356,7]
[361877758,1747861858985,-1405.53,0.00038356,30]
[361877759,1747861858994,-1999.71,0.00038356,30]
[361877760,1747861859004,-600.07,0.00038356,30]
[361877761,1747861859014,-484.42,0.00038356,30]
[361877762,1747861859024,-420.0,0.00038356,30]
[361877763,1747861859034,-420.0,0.00038356,30]
[361877764,1747861859044,-420.0,0.00038356,30]
[361877765,1747861859054,-500.0,0.00038356,30]
[361877766,1747861859064,-420.0,0.00038356,30]
[361877767,1747861859074,-420.0,0.00038356,30]
[361877768,1747861859090,-1343.24,0.00038356,30]
[361877770,1747861859100,-420.0,0.00038356,30]
[361877771,1747861859110,-420.0,0.00038356,30]
[361877772,1747861859120,-420.0,0.00038356,30]
[361877773,1747861859130,-420.0,0.00038356,30]
[361877774,1747861859140,-420.0,0.00038356,30]
[361877775,1747861859151,-543.59765408,0.00038356,30]
[361877776,1747861859160,-1270.44,0.00038356,30]
[361877777,1747861859170,-420.0,0.00038356,30]
[361877778,1747861859181,-420.0,0.00038356,30]
[361877779,1747861859191,-1423.82,0.00038356,30]
[361877780,1747861859202,-420.0,0.00038356,30]
[361877781,1747861859212,-610.27,0.00038356,30]
[361877782,1747861859222,-420.0,0.00038356,30]
[361877783,1747861859233,-420.0,0.00038356,30]
[361877784,1747861859243,-1095.73,0.00038356,30]
[361877785,1747861859253,-420.0,0.00038356,30]
[361877786,1747861859264,-420.0,0.00038356,30]
[361877787,1747861859277,-946.42,0.00038356,30]
[361877788,1747861859286,-420.0,0.00038356,2]
[361877789,1747861859297,-1879.79,0.00038356,30]
[361877790,1747861859308,-420.0,0.00038356,30]
[361877791,1747861859319,-420.0,0.00038356,30]
[361877792,1747861859329,-420.0,0.00038356,30]
[361877793,1747861859557,-1133.41,0.00038356,30]
[361877794,1747861859567,-1135.78,0.00038356,30]
[361877795,1747861859576,-449.11,0.00038356,30]
[361877796,1747861859586,-1361.78,0.00038356,30]
[361877797,1747861859595,-423.34,0.00038356,30]
[361877798,1747861859605,-1379.37,0.00038356,30]
[361877799,1747861859615,-420.0,0.00038356,30]
[361877800,1747861859625,-420.0,0.00038356,30]
[361877801,1747861859635,-420.0,0.00038356,30]
[361877802,1747861859644,-420.0,0.00038356,30]
[361877803,1747861859654,-412.18045079,0.00038356,30]
[361877804,1747861859663,-1990.14,0.00038356,30]
[361877805,1747861859673,-420.0,0.00038356,30]
[361877806,1747861859682,-3008.91,0.00038356,30]
[361877807,1747861859693,-1301.98,0.00038356,30]
[361877808,1747861859702,-420.0,0.00038356,30]
[361877809,1747861859711,-420.0,0.00038356,30]
[361877810,1747861859721,-420.0,0.00038356,30]
[361877811,1747861859730,-420.0,0.00038356,30]
[361877812,1747861859739,-776.49,0.00038356,30]
[361877813,1747861859749,-420.0,0.00038356,30]
[361877814,1747861859759,-420.0,0.00038356,30]
[361877815,1747861859769,-420.0,0.00038356,30]
[361877816,1747861859778,-470.05,0.00038356,30]
[361877817,1747861859787,-420.0,0.00038356,30]
[361877818,1747861859798,-420.0,0.00038356,30]
[361877819,1747861859808,-707.16,0.00038356,30]
[361877820,1747861859817,-621.51,0.00038356,30]
[361877821,1747861859827,-420.0,0.00038356,30]
[361877822,1747861859836,-420.0,0.00038356,30]
[361877823,1747861859845,-420.0,0.00038356,7]
[361877824,1747861859855,-1194.37,0.00038356,30]
[361877825,1747861859865,-1514.73,0.00038356,30]
[361877826,1747861859874,-420.0,0.00038356,30]
[361877827,1747861859883,-420.0,0.00038356,30]
[361877828,1747861859893,-1033.36,0.00038356,30]
[361877829,1747861859907,-917.65,0.00038356,30]
[361877830,1747861859917,-1068.06,0.00038356,30]
[361877831,1747861859928,-1176.52,0.00038356,30]
[361877832,1747861859938,-932.09,0.00038356,30]
[361877833,1747861859947,-420.0,0.00038356,30]
[361877834,1747861859957,-420.0,0.00038356,30]
[361877835,1747861859967,-1035.87,0.00038356,30]
[361877836,1747861859976,-420.0,0.00038356,30]
[361877837,1747861859985,-505.2,0.00038356,30]
[361877838,1747861859995,-1033.59,0.00038356,30]
[361877839,1747861860005,-652.73,0.00038356,30]
[361877840,1747861860015,-425.48,0.00038356,30]
[361877841,1747861860025,-420.0,0.00038356,30]
[361877842,1747861860034,-420.0,0.00038356,30]
[361877843,1747861860043,-420.0,0.00038356,30]
[361877844,1747861860053,-944.13,0.00038356,30]
[361877845,1747861860062,-420.0,0.00038356,30]
[361877846,1747861860073,-420.0,0.00038356,30]
[361877847,1747861860082,-420.0,0.00038356,30]
[361877848,1747861860092,-576.35,0.00038356,30]
[361877849,1747861860102,-1469.96,0.00038356,30]
[361877850,1747861860111,-420.0,0.00038356,30]
[361877851,1747861860120,-420.0,0.00038356,30]
[361877852,1747861860130,-1491.27,0.00038356,30]
[361877853,1747861860139,-420.0,0.00038356,30]
[361877854,1747861860149,-420.0,0.00038356,30]
[361877855,1747861860158,-420.0,0.00038356,30]
[361877856,1747861860168,-420.0,0.00038356,30]
[361877857,1747861860177,-1237.09,0.00038356,30]
[361877858,1747861860187,-420.0,0.00038356,30]
[361877859,1747861860196,-739.87,0.00038356,30]
[361877860,1747861860206,-1764.01,0.00038356,30]
[361877861,1747861860215,-422.65,0.00038356,30]
[361877862,1747861860225,-420.0,0.00038356,30]
[361877863,1747861860235,-420.0,0.00038356,30]
[361877864,1747861860244,-676.19,0.00038356,30]
[361877865,1747861860253,-420.0,0.00038356,30]
[361877866,1747861860263,-535.4,0.00038356,30]
[361877867,1747861860275,-2322.37,0.00038356,30]
[361877868,1747861860285,-420.0,0.00038356,30]
[361877869,1747861860295,-420.0,0.00038356,30]
[361877870,1747861860306,-1246.2,0.00038356,30]
[361877871,1747861860317,-420.0,0.00038356,30]
[361877872,1747861860326,-37978.05,0.00038356,7]
[361877873,1747861860336,-420.0,0.00038356,30]
[361877874,1747861860346,-420.0,0.00038356,30]
[361877875,1747861860357,-420.0,0.00038356,30]
[361877876,1747861860380,-420.0,0.00038356,30]
[361877877,1747861860390,-711.34,0.00038356,30]
[361877878,1747861860400,-420.0,0.00038356,30]
[361877879,1747861860409,-420.0,0.00038356,30]
[361877880,1747861860419,-1175.26,0.00038356,30]
[361877881,1747861860430,-517.49,0.00038356,30]
[361877882,1747861860439,-420.0,0.00038356,30]
[361877883,1747861860449,-420.0,0.00038356,30]
[361877884,1747861860459,-462.02,0.00038356,30]
[361877885,1747861860468,-420.0,0.00038356,30]
[361877886,1747861860478,-420.0,0.00038356,30]
[361877887,1747861860487,-500.0,0.00038356,30]
[361877888,1747861860497,-769.96,0.00038356,30]
[361877889,1747861860507,-1332.87,0.00038356,30]
[361877890,1747861860517,-420.0,0.00038356,30]
[361877891,1747861860527,-420.0,0.00038356,30]
[361877892,1747861860536,-545.61,0.00038356,30]
[361877893,1747861860545,-1564.49,0.00038356,30]
[361877894,1747861860555,-420.0,0.00038356,30]
[361877895,1747861860565,-177.604046,0.00038356,30]
[361877896,1747861860575,-578.17,0.00038356,30]
[361877897,1747861860585,-500.0,0.00038356,120]
[361877898,1747861860595,-441.0365834,0.00038356,30]
[361877899,1747861860604,-420.0,0.00038356,30]
[361877900,1747861860613,-420.0,0.00038356,30]
[361877901,1747861860623,-1487.79,0.00038356,30]
[361877902,1747861860633,-425.04,0.00038356,30]
[361877903,1747861860643,-420.0,0.00038356,30]
[361877904,1747861860653,-420.0,0.00038356,30]
[361877905,1747861860662,-420.0,0.00038356,30]
[361877906,1747861860672,-420.0,0.00038356,30]
[361877907,1747861860682,-420.0,0.00038356,30]
[361877908,1747861860691,-420.0,0.00038356,30]
[361877909,1747861860701,-420.0,0.00038356,30]
[361877910,1747861860711,-420.0,0.00038356,30]
[361877911,1747861860721,-420.0,0.00038356,30]
[361877912,1747861860730,-320.158838,0.00038356,30]
[361877913,1747861860740,-151.0,0.00038356,7]
[361877914,1747861860750,-1114.79,0.00038356,30]
[361877915,1747861860760,-420.0,0.00038356,30]
[361877916,1747861860770,-420.0,0.00038356,30]
[361877917,1747861860780,-151.0,0.00038356,7]
[361877918,1747861860790,-1876.84,0.00038356,30]
[361877919,1747861860806,-420.0,0.00038356,30]
[361877920,1747861860817,-463.75,0.00038356,30]
[361877921,1747861860827,-420.0,0.00038356,30]
[361877922,1747861860837,-420.0,0.00038356,30]
[361877923,1747861860847,-1167.48,0.00038356,30]
[361877924,1747861860857,-1262.6,0.00038356,30]
[361877925,1747861860867,-523.47,0.00038356,30]
[361877926,1747861860877,-445.33,0.00038356,30]
[361877927,1747861860887,-151.0,0.00038356,7]
[361877928,1747861860897,-151.0,0.00038356,7]
[361877929,1747861860907,-420.0,0.00038356,30]
[361877930,1747861860917,-151.0,0.00038356,7]
[361877931,1747861860928,-420.0,0.00038356,30]
[361877932,1747861860938,-420.0,0.00038356,30]
[361877933,1747861860948,-151.0,0.00038356,7]
[361877934,1747861860958,-151.0,0.00038356,7]
[361877935,1747861860968,-1869.85,0.00038356,30]
[361877936,1747861860978,-182.440396,0.00038356,7]
[361877937,1747861860987,-420.0,0.00038356,30]
[361877938,1747861860997,-420.0,0.00038356,30]
[361877939,1747861861007,-420.0,0.00038356,30]
[361877940,1747861861017,-511.0,0.00038356,30]
[361877941,1747861861027,-420.0,0.00038356,30]
[361877942,1747861861036,-246.654871,0.00038356,7]
[361877943,1747861861045,-246.654871,0.00038356,7]
[361877944,1747861861055,-420.0,0.00038356,30]
[361877945,1747861861064,-420.0,0.00038356,30]
[361877946,1747861861074,-1226.19,0.00038356,30]
[361877947,1747861861084,-420.0,0.00038356,30]
[361877948,1747861861094,-432.03,0.00038356,30]
[361877949,1747861861103,-1357.51,0.00038356,30]
[361877950,1747861861113,-307.27,0.00038356,30]
[361877951,1747861861124,-420.0,0.00038356,30]
[361877952,1747861861134,-1739.8,0.00038356,30]
[361877953,1747861861144,-359.94873243,0.00038356,30]
[361877954,1747861861153,-631.57,0.00038356,30]
[361877955,1747861861163,-518.85,0.00038356,30]
[361877956,1747861861173,-246.654871,0.00038356,7]
[361877957,1747861861182,-420.0,0.00038356,30]
[361877958,1747861861192,-420.0,0.00038356,30]
[361877959,1747861861201,-246.654871,0.00038356,7]
[361877960,1747861861211,-420.0,0.00038356,30]
[361877961,1747861861220,-729.81,0.00038356,30]
[361877962,1747861861230,-420.0,0.00038356,30]
[361877963,1747861861240,-420.0,0.00038356,30]
[361877964,1747861861249,-420.0,0.00038356,30]
[361877965,1747861861259,-420.0,0.00038356,30]
[361877966,1747861861270,-1247.12,0.00038356,30]
[361877967,1747861861281,-420.0,0.00038356,30]
[361877968,1747861861291,-420.0,0.00038356,30]
[361877969,1747861861300,-498.09,0.00038356,30]
[361877970,1747861861310,-174.559767,0.00038356,30]
[361877971,1747861861320,-420.0,0.00038356,30]
[361877972,1747861861330,-420.0,0.00038356,30]
[361877973,1747861861340,-420.0,0.00038356,30]
[361877974,1747861861351,-1923.57,0.00038356,30]
[361877975,1747861861361,-151.0,0.00038356,7]
[361877976,1747861861371,-420.0,0.00038356,30]
[361877977,1747861861382,-1670.37,0.00038356,30]
[361877978,1747861861392,-848.7,0.00038356,30]
[361877979,1747861861402,-420.0,0.00038356,30]
[361877980,1747861861412,-420.0,0.00038356,30]
[361877981,1747861861422,-470.99,0.00038356,30]
[361877982,1747861861432,-420.0,0.00038356,30]
[361877983,1747861861443,-1094.3,0.00038356,30]
[361877984,1747861861454,-420.0,0.00038356,30]
[361877985,1747861861464,-420.0,0.00038356,30]
[361877986,1747861861474,-638.7,0.00038356,30]
[361877987,1747861861485,-420.0,0.00038356,30]
[361877988,1747861861495,-420.0,0.00038356,30]
[361877989,1747861861505,-420.0,0.00038356,30]
[361877990,1747861861515,-420.0,0.00038356,30]
[361877991,1747861861528,-420.0,0.00038356,30]
[361877992,1747861861538,-420.0,0.00038356,30]
[361877993,1747861861548,-420.0,0.00038356,30]
[361877994,1747861861559,-420.0,0.00038356,30]
[361877995,1747861861569,-782.46,0.00038356,30]
[361877996,1747861861580,-154.288551,0.00038356,30]
[361877997,1747861861589,-524.71,0.00038356,30]
[361877998,1747861861599,-420.0,0.00038356,30]
[361877999,1747861861609,-509.22,0.00038356,30]
[361878000,1747861861620,-420.0,0.00038356,30]
[361878001,1747861861630,-1189.71,0.00038356,30]
[361878002,1747861861640,-420.0,0.00038356,30]
[361878003,1747861861651,-1003.22,0.00038356,30]
[361878004,1747861861661,-420.0,0.00038356,30]
[361878005,1747861861671,-420.0,0.00038356,30]
[361878006,1747861861682,-566.37241652,0.00038356,30]
[361878007,1747861861692,-420.0,0.00038356,30]
[361878008,1747861861702,-420.0,0.00038356,30]
[361878009,1747861861712,-420.0,0.00038356,30]
[361878010,1747861861722,-420.0,0.00038356,30]
[361878011,1747861861732,-420.0,0.00038356,30]
[361878012,1747861861743,-564.76,0.00038356,30]
[361878013,1747861861753,-420.0,0.00038356,30]
[361878014,1747861861763,-1163.08,0.00038356,30]
[361878015,1747861861775,-542.43,0.00038356,30]
[361878016,1747861861786,-2090.48830063,0.00038356,30]
[361878017,1747861861796,-420.0,0.00038356,30]
[361878018,1747861861807,-420.0,0.00038356,30]
[361878019,1747861861817,-151.0,0.00038356,7]
[361878020,1747861861827,-151.0,0.00038356,7]
[361878021,1747861861839,-151.0,0.00038356,7]
[361878022,1747861861849,-151.0,0.00038356,7]
[361878023,1747861861859,-420.0,0.00038356,30]
[361878024,1747861861869,-420.0,0.00038356,30]
[361878025,1747861861879,-725.26,0.00038356,30]
[361878026,1747861861889,-420.0,0.00038356,30]
[361878027,1747861861899,-1229.69,0.00038356,30]
[361878028,1747861861909,-420.0,0.00038356,30]
[361878029,1747861861919,-420.0,0.00038356,30]
[361878030,1747861861929,-420.0,0.00038356,30]
[361878031,1747861861940,-634.24,0.00038356,30]
[361878032,1747861861950,-1041.62,0.00038356,30]
[361878033,1747861861960,-154.385502,0.00038356,30]
[361878034,1747861861970,-420.0,0.00038356,30]
[361878035,1747861861980,-819.16,0.00038356,30]
[361878036,1747861861990,-420.0,0.00038356,30]
[361878037,1747861862001,-1633.33,0.00038356,30]
[361878038,1747861862011,-5851.88,0.00038356,30]
[361878039,1747861862023,-1060.09,0.00038356,30]
[361878040,1747861862034,-1389.62,0.00038356,30]
[361878041,1747861862044,-420.0,0.00038356,30]
[361878042,1747861862055,-151.0,0.00038356,7]
[361878043,1747861862065,-151.0,0.00038356,7]
[361878044,1747861862075,-420.0,0.00038356,30]
[361878045,1747861862085,-420.0,0.00038356,30]
[361878046,1747861862095,-455.61,0.00038356,30]
[361878047,1747861862105,-420.0,0.00038356,30]
[361878048,1747861862116,-420.0,0.00038356,30]
[361878049,1747861862126,-420.0,0.00038356,30]
[361878050,1747861862136,-420.0,0.00038356,30]
[361878051,1747861862146,-420.0,0.00038356,30]
[361878052,1747861862156,-420.0,0.00038356,30]
[361878053,1747861862166,-420.0,0.00038356,30]
[361878054,1747861862177,-1517.15,0.00038356,30]
[361878055,1747861862187,-420.0,0.00038356,30]
[361878056,1747861862196,-420.0,0.00038356,30]
[361878057,1747861862206,-796.55,0.00038356,30]
[361878058,1747861862216,-817.87,0.00038356,30]
[361878059,1747861862225,-420.0,0.00038356,30]
[361878060,1747861862234,-420.0,0.00038356,30]
[361878061,1747861862244,-621.43,0.00038356,30]
[361878062,1747861862254,-420.0,0.00038356,30]
[361878063,1747861862264,-420.0,0.00038356,30]
[361878064,1747861862278,-420.0,0.00038356,30]
[361878065,1747861862288,-587.67,0.00038356,30]
[361878066,1747861862297,-420.0,0.00038356,30]
[361878067,1747861862308,-420.0,0.00038356,30]
[361878068,1747861862319,-420.0,0.00038356,30]
[361878069,1747861862328,-338.45732409,0.00038356,30]
[361878070,1747861862338,-1008.75,0.00038356,30]
[361878071,1747861862349,-420.0,0.00038356,30]
[361878072,1747861862359,-420.0,0.00038356,25]
[361878074,1747861862369,-669.03,0.00038356,30]
[361878075,1747861862379,-420.0,0.00038356,30]
[361878076,1747861862388,-3264.32,0.00038356,30]
[361878077,1747861862398,-420.0,0.00038356,30]
[361878078,1747861862407,-723.64,0.00038356,30]
[361878079,1747861862417,-579.62,0.00038356,30]
[361878080,1747861862426,-420.0,0.00038356,30]
[361878081,1747861862436,-1712.88,0.00038356,30]
[361878082,1747861862446,-521.24,0.00038356,30]
[361878083,1747861862455,-570.47,0.00038356,30]
[361878084,1747861862465,-420.0,0.00038356,30]
[361878085,1747861862474,-420.0,0.00038356,30]
[361878086,1747861862484,-1354.29,0.00038356,30]
[361878087,1747861862494,-1925.68,0.00038356,30]
[361878088,1747861862503,-420.0,0.00038356,30]
[361878089,1747861862513,-535.26179875,0.00038356,30]
[361878090,1747861862524,-420.0,0.00038356,30]